lending/lending_fUSD_20260312
["ID","MTS","AMOUNT","RATE_DAILY","PERIOD"]
[408256017,1773323447965,-151.0,0.000199,2]
[408256018,1773323447975,-151.0,0.000199,2]
[408256019,1773323447984,-2000.0,0.000199,2]
[408256020,1773323447994,-151.0,0.000199,2]
[408256021,1773323448003,-3351.0060934,0.0001991,2]
[408256022,1773323448013,-180.22727664,0.00019941,2]
[408256023,1773323448022,-759.0,0.00019944,2]
[408256024,1773323448031,-500.0,0.00019945,2]
[408256025,1773323448045,-78954.5725194,0.0001995,2]
[408256026,1773323448054,-151.0,0.0001995,2]
[408256027,1773323448064,-151.0,0.0001995,2]
[408256028,1773323448074,-216.034673,0.0001995,2]
[408256029,1773323448083,-216.034673,0.0001995,2]
[408256030,1773323448093,-216.034673,0.0001995,2]
[408256031,1773323448102,-216.034673,0.0001995,2]
[408256032,1773323448112,-216.24219,0.00019952,2]
[408256033,1773323448122,-700.0,0.0001997,2]
[408256034,1773323448131,-700.0,0.0001997,2]
[408256035,1773323448141,-1356.29105231,0.0001997,2]
[408256036,1773323448151,-32781.6204116,0.00019977,2]
[408256037,1773323448161,-171211.1128122,0.00019977,2]
[408256038,1773323448171,-15372.4738674,0.00019977,2]
[408256039,1773323448180,-316.850194,0.00019977,2]
[408256040,1773323448190,-316.850194,0.00019977,2]
[408256041,1773323448200,-316.850194,0.00019977,2]
[408256042,1773323448209,-316.850194,0.00019977,2]
[408256043,1773323448219,-151.0,0.00019977,2]
[408256044,1773323448228,-54954.5165263,0.00019977,2]
[408256045,1773323448240,-151.0,0.00019977,2]
[408256046,1773323448253,-242.724097,0.00019977,2]
[408256047,1773323448262,-242.724097,0.00019977,2]
[408256048,1773323448272,-242.724097,0.00019977,2]
[408256049,1773323448282,-242.724097,0.00019977,2]
[408256050,1773323448291,-151.0,0.00019977,2]
[408256051,1773323448301,-265.244161,0.00019977,2]
[408256052,1773323448310,-265.244161,0.00019977,2]
[408256053,1773323448321,-265.244161,0.00019977,2]
[408256054,1773323448331,-265.244161,0.00019977,2]
[408256055,1773323448340,-154.789257,0.00019977,2]
[408256056,1773323448350,-151.0,0.00019977,2]
[408256057,1773323448359,-151.0,0.00019977,2]
[408256058,1773323448369,-183.836779,0.00019977,2]
[408256059,1773323448379,-748.66294326,0.0001999,2]
[408256060,1773323448388,-151.0,0.00019997,2]
[408256061,1773323448398,-151.0,0.00019997,2]
[408256062,1773323448407,-611.47589012,0.00019998,2]
[408256063,1773323448416,-2873.0,0.0002,2]
[408256064,1773323448426,-558.0,0.0002,2]
[408256065,1773323448435,-1284461.36064563,0.0002,2]
[408256066,1773323448445,-1540.85433812,0.0002,2]
[408256067,1773323448454,-177.37815239,0.0002,2]
[408256068,1773323448464,-4738.06557045,0.0002,2]
[408256069,1773323448474,-150.0,0.0002,7]
[408256070,1773323448483,-2464.68,0.0002,2]
[408256071,1773323448493,-260970.70623321,0.0002,2]
[408256072,1773323448502,-1300.82312217,0.0002,2]
[408256073,1773323448512,-30115.54751795,0.0002,7]
[408256074,1773323448522,-1050.09646487,0.0002,2]
[408256075,1773323448531,-152.0,0.0002,2]
[408256076,1773323448540,-1005.10564484,0.0002,2]
[408256077,1773323448550,-3822.822968,0.0002,2]
[408256078,1773323448560,-2000.0,0.0002,2]
[408256079,1773323448570,-1330951.41419783,0.0002,2]
[408256080,1773323448580,-2264.08549502,0.0002,30]
[408256081,1773323448589,-300.0,0.0002,2]
[408256082,1773323448600,-151.0,0.0002,2]
[408256083,1773323448609,-151.0,0.0002,2]
[408256084,1773323448620,-151.0,0.0002,2]
[408256085,1773323448629,-151.0,0.0002,2]
[408256086,1773323448649,-200.0,0.0002,2]
[408256087,1773323448659,-151.0,0.0002,2]
[408256088,1773323448669,-151.0,0.0002,2]
[408256089,1773323448678,-151.0,0.0002,2]
[408256090,1773323448688,-316.850194,0.0002,2]
[408256091,1773323448698,-316.850194,0.0002,2]
[408256092,1773323448707,-316.850194,0.0002,2]
[408256093,1773323448718,-316.850194,0.0002,2]
[408256094,1773323448728,-316.850194,0.0002,2]
[408256095,1773323448737,-316.850194,0.0002,2]
[408256096,1773323448747,-316.850194,0.0002,2]
[408256097,1773323448757,-316.850184,0.0002,2]
[408256098,1773323448766,-151.0,0.0002,2]
[408256099,1773323448776,-151.0,0.0002,2]
[408256100,1773323448785,-151.0,0.0002,2]
[408256101,1773323448794,-151.0,0.0002,2]
[408256102,1773323448805,-193.201322,0.0002,2]
[408256103,1773323448818,-193.201322,0.0002,2]
[408256104,1773323448827,-193.201322,0.0002,2]
[408256105,1773323448837,-193.201322,0.0002,2]
[408256106,1773323448847,-193.201322,0.0002,2]
[408256107,1773323448857,-193.201322,0.0002,2]
[408256108,1773323448867,-193.201322,0.0002,2]
[408256109,1773323448877,-193.201322,0.0002,2]
[408256110,1773323448887,-800.9737091,0.0002,2]
[408256111,1773323448897,-4814.01443072,0.0002,2]
[408256112,1773323448907,-151.0,0.0002,2]
[408256113,1773323448916,-215.732008,0.0002,2]
[408256114,1773323448926,-151.0,0.0002,2]
[408256115,1773323448935,-246.543512,0.0002,2]
[408256116,1773323448945,-242.724097,0.0002,2]
[408256117,1773323448955,-242.724097,0.0002,2]
[408256118,1773323448967,-242.724097,0.0002,2]
[408256119,1773323448976,-242.724097,0.0002,2]
[408256120,1773323448986,-242.724097,0.0002,2]
[408256121,1773323448995,-242.724097,0.0002,2]
[408256122,1773323449004,-242.724097,0.0002,2]
[408256123,1773323449017,-242.724105,0.0002,2]
[408256124,1773323449027,-943.84725,0.0002,2]
[408256125,1773323449037,-943.84725,0.0002,2]
[408256126,1773323449047,-943.84725,0.0002,2]
[408256127,1773323449059,-943.84725,0.0002,2]
[408256128,1773323449070,-284.144415,0.0002,2]
[408256129,1773323449080,-265.244161,0.0002,2]
[408256130,1773323449091,-265.244161,0.0002,2]
[408256131,1773323449101,-265.244161,0.0002,2]
[408256132,1773323449111,-265.244161,0.0002,2]
[408256133,1773323449120,-265.244161,0.0002,2]
[408256134,1773323449129,-265.244161,0.0002,2]
[408256135,1773323449140,-265.244161,0.0002,2]
[408256136,1773323449150,-265.244156,0.0002,2]
[408256137,1773323449160,-151.0,0.0002,2]
[408256138,1773323449170,-151.0,0.0002,2]
[408256139,1773323449181,-187.660061,0.0002,2]
[408256140,1773323449192,-216.034673,0.0002,2]
[408256141,1773323449201,-216.034673,0.0002,2]
[408256142,1773323449211,-216.034673,0.0002,2]
[408256143,1773323449221,-216.034673,0.0002,2]
[408256144,1773323449230,-216.034673,0.0002,2]
[408256145,1773323449242,-216.034673,0.0002,2]
[408256146,1773323449255,-216.034673,0.0002,2]
[408256147,1773323449264,-216.034668,0.0002,2]
[408256148,1773323449274,-163.0,0.0002,3]
[408256149,1773323449286,-151.0,0.0002,2]
[408256150,1773323449296,-151.0,0.0002,2]
[408256151,1773323449305,-151.0,0.0002,2]
[408256152,1773323449315,-224.60508056,0.0002,2]
[408256153,1773323449326,-150.0,0.0002,2]
[408256154,1773323449335,-259.21251933,0.0002,2]
[408256155,1773323449344,-2000.0,0.0002001,2]
[408256156,1773323449354,-2000.0,0.0002002,2]
[408256157,1773323449364,-2737.628529,0.0002003,2]
[408256158,1773323449374,-350.0,0.00020058,2]
[408256159,1773323449383,-759.0,0.00020086,2]
[408256160,1773323449392,-213.0,0.00020089,2]
[408256161,1773323449404,-9999.99,0.00020145,2]
[408256162,1773323449415,-29999.99,0.00020145,2]
[408256163,1773323449424,-13682.15,0.00020145,2]
[408256164,1773323449433,-250.0,0.00020161,2]
[408256165,1773323449444,-1217.97,0.00020171,2]
[408256166,1773323449453,-150.0,0.00020175,2]
[408256167,1773323449462,-188.90685256,0.00020175,2]
[408256168,1773323449471,-3211.1702038,0.0002018,2]
[408256169,1773323449482,-759.0,0.00020186,2]
[408256170,1773323449491,-2217.0,0.00020203,2]
[408256171,1773323449500,-257.83,0.00020209,2]
[408256172,1773323449510,-153.56106976,0.00020212,2]
[408256173,1773323449519,-213.0,0.00020226,2]
[408256174,1773323449528,-551.0,0.00020247,2]
[408256175,1773323449537,-500.0,0.00020265,2]
[408256176,1773323449547,-200.0,0.00020265,2]
[408256177,1773323449557,-328.38562332,0.00020265,2]
[408256178,1773323449566,-700.0,0.00020265,2]
[408256179,1773323449575,-151.0,0.00020271,2]
[408256180,1773323449585,-350.0,0.00020339,2]
[408256181,1773323449596,-213.0,0.00020363,2]
[408256182,1773323449606,-759.0,0.00020386,2]
[408256183,1773323449616,-159.0,0.000204,120]
[408256184,1773323449626,-759.0,0.00020452,2]
[408256185,1773323449635,-759.0,0.0002046,2]
[408256186,1773323449645,-213.0,0.000205,2]
[408256187,1773323449654,-250.0,0.00020532,2]
[408256188,1773323449664,-158.06,0.00020548,2]
[408256189,1773323449673,-4865.79237983,0.00020569,8]
[408256190,1773323449683,-759.0,0.00020599,2]
[408256191,1773323449693,-506.99,0.000206,2]
[408256192,1773323449703,-202.8,0.000206,2]
[408256193,1773323449713,-716.5089218,0.00020689,2]
[408256194,1773323449723,-572.20979601,0.00020723,2]
[408256195,1773323449732,-759.0,0.00020754,2]
[408256196,1773323449741,-500.0,0.00020813,2]
[408256197,1773323449751,-200.0,0.00020813,2]
[408256198,1773323449760,-759.0,0.00020896,2]
[408256199,1773323449770,-759.0,0.0002091,2]
[408256200,1773323449779,-759.0,0.00020975,2]
[408256201,1773323449788,-1199.58128733,0.00021,2]
[408256202,1773323449798,-198.00086951,0.00021,2]
[408256203,1773323449808,-400.0,0.00021,2]
[408256204,1773323449818,-250.0,0.00021043,3]
[408256205,1773323449827,-1000.0,0.00021064,2]
[408256206,1773323449837,-257.83,0.00021128,2]
[408256207,1773323449846,-759.0,0.00021224,2]
[408256208,1773323449855,-759.0,0.00021254,2]
[408256209,1773323449866,-759.0,0.00021311,2]
[408256210,1773323449875,-1600.0,0.00021329,2]
[408256211,1773323449885,-1000.0,0.00021338,2]
[408256212,1773323449895,-500.0,0.00021361,2]
[408256213,1773323449904,-165.1294434,0.0002137,2]
[408256214,1773323449914,-163.0,0.000214,3]
[408256215,1773323449923,-247.48115388,0.0002147,2]
[408256216,1773323449934,-153.56106976,0.00021475,2]
[408256217,1773323449944,-223.38525344,0.000215,2]
[408256218,1773323449953,-310.64170081,0.00021519,2]
[408256219,1773323449963,-4609.0,0.00021521,2]
[408256220,1773323449973,-620.0,0.00021528,2]
[408256221,1773323449984,-3507.0,0.00021528,2]
[408256222,1773323449993,-1043.0,0.00021528,2]
[408256223,1773323450002,-1343.0,0.00021528,2]
[408256224,1773323450012,-1280.0,0.00021528,2]
[408256225,1773323450021,-1018.978,0.00021528,2]
[408256226,1773323450194,-1213.0,0.00021528,2]
[408256227,1773323450204,-5997.0,0.00021528,2]
[408256228,1773323450213,-3751.0,0.00021528,2]
[408256229,1773323450223,-150.0,0.00021544,2]
[408256230,1773323450232,-249.192552,0.00021546,2]
[408256231,1773323450242,-1000.0,0.00021612,2]
[408256232,1773323450255,-237.131164,0.00021676,7]
[408256233,1773323450265,-2000.0,0.00021682,2]
[408256234,1773323450274,-150.0,0.00021727,2]
[408256235,1773323450285,-150.0,0.00021727,2]
[408256236,1773323450294,-150.0,0.00021727,2]
[408256237,1773323450303,-150.0,0.00021727,2]
[408256238,1773323450314,-150.0,0.00021727,2]
[408256239,1773323450323,-250.0,0.00021746,4]
[408256240,1773323450332,-1152.0,0.00021761,2]
[408256241,1773323450341,-1999.0,0.00021886,2]
[408256242,1773323450350,-350.0,0.00021908,2]
[408256243,1773323450359,-500.0,0.00021909,2]
[408256244,1773323450369,-232.72,0.00021918,2]
[408256245,1773323450379,-5000.0,0.00021918,2]
[408256246,1773323450388,-500.0,0.00021918,2]
[408256247,1773323450398,-162.27323831,0.00021918,2]
[408256248,1773323450407,-198.19114184,0.0002193,2]
[408256249,1773323450416,-350.0,0.00021963,2]
[408256250,1773323450425,-297.28671277,0.00021992,2]
[408256251,1773323450435,-2009.98192136,0.00022,2]
[408256252,1773323450444,-164.92,0.00022,2]
[408256253,1773323450454,-160.0,0.00022,2]
[408256254,1773323450463,-158.0,0.00022,3]
[408256255,1773323450473,-225.9379017,0.00022042,2]
[408256256,1773323450483,-257.83,0.00022046,2]
[408256257,1773323450492,-497.36048734,0.000221,2]
[408256258,1773323450502,-241.70622203,0.0002211,2]
[408256259,1773323450513,-1000.0,0.0002216,2]
[408256260,1773323450523,-8927.038309,0.00022316,30]
[408256261,1773323450533,-195.13501284,0.00022388,11]
[408256262,1773323450543,-747.7105262,0.00022432,2]
[408256263,1773323450553,-1000.0,0.00022434,2]
[408256264,1773323450563,-500.0,0.00022457,2]
[408256265,1773323450573,-1414.726692,0.00022458,30]
[408256266,1773323450583,-17617.1464107,0.00022485,2]
[408256267,1773323450592,-3430.0625559,0.00022507,2]
[408256268,1773323450602,-7314.5682123,0.00022515,2]
[408256269,1773323450612,-38202.3630209,0.00022515,2]
[408256270,1773323450625,-12262.0100734,0.00022515,2]
[408256271,1773323450635,-275.93335682,0.00022622,5]
[408256272,1773323450645,-150.0,0.00022622,5]
[408256273,1773323450655,-1000.0,0.00022708,2]
[408256274,1773323450665,-526.38627962,0.0002271,2]
[408256275,1773323450675,-250.0,0.00022711,4]
[408256276,1773323450685,-507.0,0.00022727,7]
[408256277,1773323450695,-153.56106976,0.00022739,2]
[408256278,1773323450705,-163.0,0.000228,3]
[408256279,1773323450714,-2000.0,0.000229,2]
[408256280,1773323450725,-257.83,0.00022965,2]
[408256281,1773323450736,-1999.0,0.00022982,2]
[408256282,1773323450746,-166.8367694,0.00022994,2]
[408256283,1773323450757,-1002.7567189,0.00023,2]
[408256284,1773323450767,-450.0,0.00023,2]
[408256285,1773323450778,-500.0,0.00023005,2]
[408256286,1773323450788,-3930.9166999,0.0002305,2]
[408256287,1773323450797,-765.3504074,0.00023072,2]
[408256288,1773323450807,-153.89,0.00023079,30]
[408256289,1773323450817,-153.89,0.00023079,30]
[408256290,1773323450826,-153.89,0.00023079,30]
[408256291,1773323450836,-153.89,0.00023079,30]
[408256292,1773323450845,-153.89,0.00023079,30]
[408256293,1773323450855,-1632.1007766,0.00023081,2]
[408256294,1773323450866,-8524.0993789,0.00023081,2]
[408256295,1773323450875,-2736.0242714,0.00023081,2]
[408256296,1773323450885,-3330.46,0.00023148,2]
[408256297,1773323450894,-290.51914848,0.00023149,13]
[408256298,1773323450904,-862.40174362,0.000232,2]
[408256299,1773323450913,-310.64170081,0.0002321,2]
[408256300,1773323450923,-500.0,0.00023287,2]
[408256301,1773323450932,-232.72,0.0002336,2]
[408256302,1773323450942,-1600.0,0.00023462,2]
[408256303,1773323450951,-200.0,0.000235,2]
[408256304,1773323450961,-500.0,0.00023553,2]
[408256305,1773323450970,-700.0,0.0002367,2]
[408256306,1773323450980,-6453.0,0.00023673,2]
[408256307,1773323450989,-627.6052825,0.00023687,2]
[408256308,1773323450999,-506.99,0.0002369,2]
[408256309,1773323451008,-150.33348315,0.000237,7]
[408256310,1773323451018,-1613.0,0.00023812,2]
[408256311,1773323451028,-150.0,0.00023867,2]
[408256312,1773323451037,-226.5631695,0.00023867,2]
[408256313,1773323451047,-484.79,0.00023869,2]
[408256314,1773323451056,-442.17,0.00023869,2]
[408256315,1773323451065,-442.18,0.00023869,2]
[408256316,1773323451074,-257.83,0.00023883,2]
[408256317,1773323451083,-1028.03199947,0.00024,2]
[408256318,1773323451092,-1242.93858331,0.00024,2]
[408256319,1773323451102,-153.56106976,0.00024002,2]
[408256320,1773323451112,-250.0,0.00024038,5]
[408256321,1773323451123,-225.6553686,0.0002416,2]
[408256322,1773323451133,-163.0,0.000242,3]
[408256323,1773323451142,-424.64112796,0.0002421,2]
[408256324,1773323451152,-442.18,0.00024266,2]
[408256325,1773323451162,-620.0,0.00024528,2]
[408256326,1773323451172,-3507.0,0.00024528,2]
[408256327,1773323451181,-1043.0,0.00024528,2]
[408256328,1773323451191,-1343.0,0.00024528,2]
[408256329,1773323451201,-1280.0,0.00024528,2]
[408256330,1773323451210,-922.0,0.00024528,2]
[408256331,1773323451220,-1213.0,0.00024528,2]
[408256332,1773323451229,-5997.0,0.00024528,2]
[408256333,1773323451243,-3751.0,0.00024528,2]
[408256334,1773323451253,-168.97039796,0.0002465,2]
[408256335,1773323451262,-500.88877377,0.00024656,2]
[408256336,1773323451272,-2011.12773399,0.00024657,2]
[408256337,1773323451282,-1000.0,0.00024658,2]
[408256338,1773323451293,-151.0,0.00024658,2]
[408256339,1773323451303,-151.0,0.00024658,2]
[408256340,1773323451313,-150.0,0.00024658,2]
[408256341,1773323451323,-442.18,0.00024664,2]
[408256342,1773323451332,-150.0,0.00024727,2]
[408256343,1773323451341,-150.0,0.00024727,2]
[408256344,1773323451351,-150.0,0.00024727,2]
[408256345,1773323451360,-232.72,0.00024802,2]
[408256346,1773323451370,-257.83,0.00024802,2]
[408256347,1773323451380,-748.66294326,0.0002489,2]
[408256348,1773323451389,-151.0,0.00024897,7]
[408256349,1773323451399,-193.201322,0.000249,2]
[408256350,1773323451409,-193.201322,0.000249,2]
[408256351,1773323451418,-193.201322,0.000249,2]
[408256352,1773323451428,-193.20132,0.000249,2]
[408256353,1773323451437,-607074.705733,0.000249,3]
[408256354,1773323451446,-310.64170081,0.000249,2]
[408256355,1773323451455,-151.0,0.000249,2]
[408256356,1773323451464,-2139.31,0.00025,2]
[408256357,1773323451474,-1118.74766361,0.00025,2]
[408256358,1773323451485,-208.41100468,0.00025,2]
[408256359,1773323451496,-170.7283442,0.00025,60]
[408256360,1773323451506,-1792.60150146,0.00025,2]
[408256361,1773323451516,-540.0,0.00025,2]
[408256362,1773323451525,-613.47312069,0.00025,2]
[408256363,1773323451535,-168.02624376,0.00025,2]
[408256364,1773323451546,-250.0,0.00025,7]
[408256365,1773323451555,-500.0,0.00025,2]
[408256366,1773323451564,-442.17,0.00025062,2]
[408256367,1773323451573,-442.19976001,0.00025062,2]
[408256368,1773323451585,-153.56106976,0.00025265,2]
[408256369,1773323451595,-5256.68941688,0.00025445,20]
[408256370,1773323451604,-598.0,0.00025575,10]
[408256371,1773323451613,-507.0,0.00025591,9]
[408256372,1773323451623,-1600.0,0.00025595,120]
[408256373,1773323451634,-163.0,0.000256,3]
[408256374,1773323451643,-158.0,0.000258,3]
[408256375,1773323451653,-250.0,0.00025862,7]
[408256376,1773323451663,-572.20979601,0.00025873,2]
[408256377,1773323451673,-150.0,0.0002589,2]
[408256378,1773323451682,-603.54921534,0.0002599,2]
[408256379,1773323451692,-217.44085056,0.00026,2]
[408256380,1773323451702,-9035.0,0.0002604,2]
[408256381,1773323451712,-2258.0,0.00026056,2]
[408256382,1773323451721,-232.72,0.00026244,2]
[408256383,1773323451730,-592.59166837,0.000263,2]
[408256384,1773323451741,-153.56106976,0.00026528,2]
[408256385,1773323451751,-526.181758,0.00026533,120]
[408256386,1773323451760,-2000.0,0.000266,2]
[408256387,1773323451770,-250.0,0.00027,2]
[408256388,1773323451779,-1039.35316734,0.00027,2]
[408256389,1773323451788,-530.0,0.00027,2]
[408256390,1773323451798,-2000.0,0.00027,2]
[408256391,1773323451807,-163.0,0.00027,3]
[408256392,1773323451816,-2509.743757,0.0002701,2]
[408256393,1773323451825,-150.0,0.00027185,2]
[408256394,1773323451835,-150.0,0.00027369,2]
[408256395,1773323451844,-151.0,0.00027397,2]
[408256396,1773323451854,-151.0,0.00027397,2]
[408256397,1773323451863,-1000.0,0.00027397,20]
[408256398,1773323451873,-300.0,0.00027397,2]
[408256399,1773323451883,-151.0,0.00027397,2]
[408256400,1773323451892,-151.0,0.00027397,2]
[408256401,1773323451902,-151.0,0.00027397,2]
[408256402,1773323451911,-283.759443,0.00027397,2]
[408256403,1773323451920,-2517.437115,0.00027397,2]
[408256404,1773323451930,-2517.437115,0.00027397,2]
[408256405,1773323451939,-2517.437115,0.00027397,2]
[408256406,1773323451949,-2517.437115,0.00027397,2]
[408256407,1773323451958,-2517.437115,0.00027397,2]
[408256408,1773323451968,-2517.437115,0.00027397,2]
[408256409,1773323451978,-2517.437115,0.00027397,2]
[408256410,1773323451988,-2517.437115,0.00027397,2]
[408256411,1773323451998,-2517.437115,0.00027397,2]
[408256412,1773323452007,-2517.437115,0.00027397,2]
[408256413,1773323452017,-2517.437115,0.00027397,2]
[408256414,1773323452026,-2517.437115,0.00027397,2]
[408256415,1773323452036,-2517.437115,0.00027397,2]
[408256416,1773323452045,-2517.437115,0.00027397,2]
[408256417,1773323452055,-2517.437115,0.00027397,2]
[408256418,1773323452064,-2517.437115,0.00027397,2]
[408256419,1773323452073,-2517.437115,0.00027397,2]
[408256420,1773323452082,-2517.437115,0.00027397,2]
[408256421,1773323452092,-2517.437115,0.00027397,2]
[408256422,1773323452101,-2517.437123,0.00027397,2]
[408256423,1773323452111,-193.594593,0.00027397,2]
[408256424,1773323452120,-4143.69,0.00027397,10]
[408256425,1773323452130,-7234.01,0.00027397,10]
[408256426,1773323452139,-153.92401772,0.00027397,2]
[408256427,1773323452150,-202.29004813,0.000275,2]
[408256428,1773323452160,-552.5248581,0.000275,2]
[408256429,1773323452288,-620.0,0.00027528,2]
[408256430,1773323452298,-3495.0,0.00027528,2]
[408256431,1773323452308,-1041.0,0.00027528,2]
[408256432,1773323452319,-1343.0,0.00027528,2]
[408256433,1773323452329,-1280.0,0.00027528,2]
[408256434,1773323452339,-922.0,0.00027528,2]
[408256435,1773323452348,-1213.0,0.00027528,2]
[408256436,1773323452362,-5991.0,0.00027528,2]
[408256437,1773323452373,-383.12,0.00027528,2]
[408256438,1773323452384,-232.72,0.00027686,2]
[408256439,1773323452394,-153.56106976,0.00027792,2]
[408256440,1773323452403,-506.99,0.0002781,60]
[408256441,1773323452416,-160.0,0.00028,2]
[408256442,1773323452425,-161.88,0.00028,2]
[408256443,1773323452434,-250.0,0.0002837,11]
[408256444,1773323452443,-163.0,0.000284,3]
[408256445,1773323452453,-507.0,0.00028455,12]
[408256446,1773323452463,-500.0,0.000285,5]
[408256447,1773323452473,-500.0,0.000285,5]
[408256448,1773323452482,-3162.0,0.00028511,2]
[408256449,1773323452491,-150.0,0.00028544,2]
[408256450,1773323452501,-12454.0,0.00028644,2]
[408256451,1773323452510,-197.609303,0.00028901,30]
[408256452,1773323452522,-1748.76088137,0.00029,2]
[408256453,1773323452531,-505.04987248,0.00029,2]
[408256454,1773323452541,-155.27966143,0.00029,120]
[408256455,1773323452550,-153.56106976,0.00029055,2]
[408256456,1773323452560,-207.63640408,0.00029076,25]
[408256457,1773323452570,-232.72,0.00029128,2]
[408256458,1773323452579,-274.05,0.000294,14]
[408256459,1773323452589,-158.0,0.000296,3]
[408256460,1773323452599,-20829.756054,0.00029754,30]
[408256461,1773323452609,-163.0,0.000298,3]
[408256462,1773323452621,-3301.028948,0.00029944,30]
[408256463,1773323452631,-150.0,0.00029971,2]
[408256464,1773323452640,-238.68187022,0.0002999,2]
[408256465,1773323452650,-6586.01837665,0.0003,3]
[408256466,1773323452659,-321.2685279,0.0003,2]
[408256467,1773323452669,-1828.89084075,0.0003,2]
[408256468,1773323452679,-7186.4425275,0.0003,30]
[408256469,1773323452689,-400.0,0.0003,20]
[408256470,1773323452698,-164.03924871,0.0003,2]
[408256471,1773323452707,-10050.27018596,0.0003,120]
[408256472,1773323452717,-160.0,0.0003,120]
[408256473,1773323452731,-1080.38784583,0.0003013,2]
[408256474,1773323452740,-638.02677959,0.0003013,2]
[408256475,1773323452751,-202.9722186,0.0003013,2]
[408256476,1773323452761,-167.49633093,0.0003013,20]
[408256477,1773323452771,-192.05,0.000302,7]
[408256478,1773323452782,-2000.0,0.000303,2]
[408256479,1773323452792,-153.56106979,0.00030318,2]
[408256480,1773323452801,-6449.56601822,0.00030321,32]
[408256481,1773323452810,-197.23311885,0.00030389,2]
[408256482,1773323452819,-854.53726608,0.00030389,2]
[408256483,1773323452829,-620.0,0.00030528,2]
[408256484,1773323452838,-797.628,0.00030528,2]
[408256485,1773323452847,-1280.0,0.00030528,2]
[408256486,1773323452857,-1213.0,0.00030528,2]
[408256487,1773323452869,-232.72,0.0003057,2]
[408256488,1773323452878,-305.41795341,0.00030598,28]
[408256489,1773323452888,-1619.00506191,0.0003084,2]
[408256490,1773323452898,-572.20979601,0.00031024,2]
[408256491,1773323452908,-1470.0,0.00031199,2]
[408256492,1773323452918,-163.0,0.000312,3]
[408256493,1773323452933,-507.0,0.00031318,15]
[408256494,1773323452942,-150.0,0.0003147,2]
[408256495,1773323452952,-198.6307391,0.000315,2]
[408256496,1773323452962,-150.0,0.000315,2]
[408256497,1773323452972,-250.0,0.00031817,21]
[408256498,1773323452982,-232.72,0.00032012,2]
[408256499,1773323452992,-192.05,0.000322,7]
[408256500,1773323453001,-899.98372614,0.000323,2]
[408256501,1773323453011,-163.0,0.000326,3]
[408256502,1773323453021,-152.0,0.00032628,3]
[408256503,1773323453031,-347.01,0.00032877,2]
[408256504,1773323453040,-7021.5,0.000329,7]
[408256505,1773323453050,-12983.2,0.000329,30]
[408256506,1773323453060,-93615.67,0.000329,14]
[408256507,1773323453070,-173.64878521,0.00033,60]
[408256508,1773323453079,-19999.999999,0.00033,30]
[408256509,1773323453088,-154.59896426,0.00033,2]
[408256510,1773323453097,-563.717969,0.00033,14]
[408256511,1773323453107,-500.0,0.00033,30]
[408256512,1773323453119,-1009.11928134,0.00033043,30]
[408256513,1773323453129,-150.0,0.00033043,2]
[408256514,1773323453139,-153.89,0.00033118,120]
[408256515,1773323453149,-153.89,0.00033118,120]
[408256516,1773323453158,-153.89,0.00033118,120]